fUST/lending_fUST_20250627
["ID","MTS","AMOUNT","RATE_DAILY","PERIOD"]
[368044749,1751005841599,-460.0,0.00019452,2]
[368044751,1751005841608,-460.0,0.00019452,2]
[368044753,1751005841618,-460.0,0.00019452,2]
[368044755,1751005841628,-460.0,0.00019452,2]
[368044757,1751005841637,-460.0,0.00019452,2]
[368044759,1751005841647,-460.0,0.00019452,2]
[368044761,1751005841656,-460.0,0.00019452,2]
[368044763,1751005841666,-376.31975991,0.00019452,2]
[368044765,1751005841675,-400.04796375,0.00019452,2]
[368044767,1751005841685,-460.0,0.00019452,2]
[368044769,1751005841695,-184.01595344,0.00019452,2]
[368044771,1751005841705,-460.0,0.00019452,2]
[368044773,1751005841714,-460.0,0.00019452,2]
[368044775,1751005841724,-430.0,0.00019452,2]
[368044777,1751005841734,-236.65,0.00019452,2]
[368044779,1751005841744,-460.0,0.00019452,2]
[368044781,1751005841753,-440.0,0.00019452,2]
[368044783,1751005841763,-460.0,0.00019452,2]
[368044785,1751005841773,-460.0,0.00019452,2]
[368044788,1751005841783,-460.0,0.00019452,2]
[368044790,1751005841793,-460.0,0.00019452,2]
[368044792,1751005841802,-461.60995275,0.00019452,2]
[368044794,1751005841812,-460.0,0.00019452,2]
[368044796,1751005841826,-460.0,0.00019452,2]
[368044798,1751005841835,-460.0,0.00019452,2]
[368044800,1751005841845,-468.62653002,0.00019452,2]
[368044802,1751005841855,-460.0,0.00019452,2]
[368044804,1751005841866,-460.0,0.00019452,2]
[368044806,1751005841875,-460.0,0.00019452,2]
[368044808,1751005841884,-460.0,0.00019452,2]
[368044810,1751005841894,-372.02718125,0.00019452,2]
[368044812,1751005841904,-596.42,0.00019452,2]
[368044814,1751005841914,-460.0,0.00019452,2]
[368044816,1751005841924,-460.0,0.00019452,2]
[368044818,1751005841933,-460.0,0.00019452,2]
[368044820,1751005841943,-460.0,0.00019452,2]
[368044822,1751005841952,-460.0,0.00019452,2]
[368044824,1751005841962,-460.0,0.00019452,2]
[368044826,1751005841972,-460.0,0.00019452,2]
[368044828,1751005841981,-430.0,0.00019452,2]
[368044830,1751005841991,-460.0,0.00019452,2]
[368044832,1751005842000,-460.0,0.00019452,2]
[368044834,1751005842013,-460.0,0.00019452,2]
[368044836,1751005842022,-5364.79,0.00019452,2]
[368044838,1751005842032,-460.0,0.00019452,2]
[368044840,1751005842041,-460.0,0.00019452,2]
[368044842,1751005842050,-460.0,0.00019452,2]
[368044845,1751005842060,-460.0,0.00019452,2]
[368044847,1751005842070,-460.0,0.00019452,2]
[368044849,1751005842079,-771.5,0.00019452,2]
[368044851,1751005842089,-460.0,0.00019452,2]
[368044853,1751005842098,-852.12,0.00019452,2]
[368044855,1751005842107,-460.0,0.00019452,2]
[368044857,1751005842116,-460.0,0.00019452,2]
[368044859,1751005842125,-441.16089819,0.00019452,2]
[368044861,1751005842135,-460.0,0.00019452,2]
[368044863,1751005842144,-460.0,0.00019452,2]
[368044865,1751005842153,-618.76,0.00019452,2]
[368044867,1751005842164,-444.65081181,0.00019452,2]
[368044869,1751005842175,-460.0,0.00019452,2]
[368044871,1751005842184,-460.0,0.00019452,2]
[368044873,1751005842194,-2045.09,0.00019452,2]
[368044875,1751005842203,-759.4,0.00019452,2]
[368044877,1751005842213,-460.0,0.00019452,2]
[368044879,1751005842226,-440.0,0.00019452,2]
[368044881,1751005842236,-595.27,0.00019452,2]
[368044883,1751005842245,-460.0,0.00019452,2]
[368044885,1751005842255,-459.35411922,0.00019452,2]
[368044887,1751005842265,-460.0,0.00019452,2]
[368044888,1751005842274,-421.3926114,0.00019452,2]
[368044889,1751005842284,-443.43411108,0.00019452,2]
[368044890,1751005842293,-460.0,0.00019452,2]
[368044891,1751005842304,-404.88186531,0.00019452,2]
[368044892,1751005842314,-976.13,0.00019452,2]
[368044893,1751005842324,-460.0,0.00019452,2]
[368044894,1751005842334,-460.0,0.00019452,2]
[368044895,1751005842344,-758.02,0.00019452,2]
[368044896,1751005842355,-1709.26,0.00019452,2]
[368044897,1751005842365,-465.39677554,0.00019452,2]
[368044898,1751005842375,-1619.78,0.00019452,2]
[368044899,1751005842385,-594.5,0.00019452,2]
[368044900,1751005842395,-407.21131743,0.00019452,2]
[368044901,1751005842404,-460.0,0.00019452,2]
[368044902,1751005842413,-460.0,0.00019452,2]
[368044903,1751005842423,-521.21,0.00019452,2]
[368044904,1751005842433,-460.0,0.00019452,2]
[368044905,1751005842442,-441.82571624,0.00019452,2]
[368044907,1751005842452,-460.0,0.00019452,2]
[368044909,1751005842462,-460.0,0.00019452,2]
[368044911,1751005842473,-460.0,0.00019452,2]
[368044913,1751005842483,-460.0,0.00019452,2]
[368044915,1751005842492,-460.0,0.00019452,2]
[368044917,1751005842502,-460.0,0.00019452,2]
[368044919,1751005842512,-460.0,0.00019452,2]
[368044921,1751005842521,-460.0,0.00019452,2]
[368044923,1751005842531,-505.12,0.00019452,2]
[368044925,1751005842541,-460.0,0.00019452,2]
[368044927,1751005842551,-460.0,0.00019452,2]
[368044929,1751005842560,-2418.76,0.00019452,2]
[368044931,1751005842570,-460.0,0.00019452,2]
[368044933,1751005842579,-458.33706449,0.00019452,2]
[368044935,1751005842589,-460.0,0.00019452,2]
[368044937,1751005842599,-460.0,0.00019452,2]
[368044939,1751005842609,-872.53,0.00019452,2]
[368044941,1751005842620,-2350.34,0.00019452,2]
[368044943,1751005842630,-460.0,0.00019452,2]
[368044945,1751005842639,-472.45823068,0.00019452,2]
[368044947,1751005842649,-460.0,0.00019452,2]
[368044949,1751005842659,-460.0,0.00019452,2]
[368044951,1751005842668,-514.51,0.00019452,2]
[368044953,1751005842678,-460.0,0.00019452,2]
[368044955,1751005842687,-460.0,0.00019452,2]
[368044957,1751005842697,-460.0,0.00019452,2]
[368044959,1751005842707,-682.36,0.00019452,2]
[368044961,1751005842717,-460.0,0.00019452,2]
[368044963,1751005842727,-460.0,0.00019452,2]
[368044966,1751005842737,-4057.52,0.00019452,2]
[368044968,1751005842747,-460.0,0.00019452,2]
[368044970,1751005842756,-430.0,0.00019452,2]
[368044988,1751005842917,-460.0,0.00019452,2]
[368044990,1751005842930,-602.16,0.00019452,2]
[368044992,1751005842940,-1034.47,0.00019452,2]
[368044994,1751005842950,-340.52908842,0.00019452,2]
[368044996,1751005842960,-460.0,0.00019452,2]
[368044998,1751005842970,-460.0,0.00019452,2]
[368045000,1751005842980,-2121.43,0.00019452,2]
[368045002,1751005842990,-505.87602387,0.00019452,2]
[368045004,1751005842999,-460.0,0.00019452,2]
[368045006,1751005843008,-460.0,0.00019452,2]
[368045008,1751005843018,-460.0,0.00019452,2]
[368045011,1751005843027,-460.0,0.00019452,2]
[368045013,1751005843037,-460.0,0.00019452,2]
[368045015,1751005843046,-460.0,0.00019452,2]
[368045017,1751005843055,-844.02,0.00019452,2]
[368045019,1751005843066,-811.4,0.00019452,2]
[368045021,1751005843075,-460.0,0.00019452,2]
[368045023,1751005843085,-460.0,0.00019452,2]
[368045025,1751005843094,-430.0,0.00019452,2]
[368045027,1751005843103,-460.0,0.00019452,2]
[368045030,1751005843113,-460.0,0.00019452,2]
[368045032,1751005843122,-792.09,0.00019452,2]
[368045034,1751005843131,-460.0,0.00019452,2]
[368045036,1751005843140,-460.0,0.00019452,2]
[368045039,1751005843151,-433.72323076,0.00019452,2]
[368045041,1751005843160,-202.93337349,0.00019452,2]
[368045042,1751005843169,-624.88,0.00019452,2]
[368045044,1751005843178,-460.0,0.00019452,2]
[368045046,1751005843188,-460.0,0.00019452,2]
[368045048,1751005843197,-460.0,0.00019452,2]
[368045050,1751005843206,-460.0,0.00019452,2]
[368045052,1751005843215,-460.0,0.00019452,2]
[368045054,1751005843225,-1335.35,0.00019452,2]
[368045056,1751005843234,-460.0,0.00019452,2]
[368045058,1751005843244,-2580.25,0.00019452,2]
[368045060,1751005843253,-460.0,0.00019452,2]
[368045062,1751005843263,-465.50509404,0.00019452,2]
[368045064,1751005843272,-460.0,0.00019452,2]
[368045066,1751005843281,-467.35,0.00019452,2]
[368045068,1751005843291,-460.0,0.00019452,2]
[368045070,1751005843300,-460.0,0.00019452,2]
[368045073,1751005843317,-1352.6,0.00019452,2]
[368045076,1751005843332,-447.02606583,0.00019452,2]
[368045078,1751005843342,-460.0,0.00019452,2]
[368045080,1751005843353,-455.0,0.00019452,2]
[368045082,1751005843363,-460.0,0.00019452,2]
[368045084,1751005843374,-460.0,0.00019452,2]
[368045086,1751005843384,-460.0,0.00019452,2]
[368045088,1751005843395,-755.44,0.00019452,2]
[368045090,1751005843405,-460.0,0.00019452,2]
[368045092,1751005843416,-460.0,0.00019452,2]
[368045095,1751005843427,-460.0,0.00019452,2]
[368045097,1751005843437,-223.12521175,0.00019452,2]
[368045099,1751005843447,-460.0,0.00019452,2]
[368045101,1751005843457,-460.0,0.00019452,2]
[368045103,1751005843468,-465.78733529,0.00019452,2]
[368045105,1751005843478,-374.15175073,0.00019452,2]
[368045107,1751005843488,-374.32,0.00019452,2]
[368045109,1751005843498,-460.0,0.00019452,2]
[368045111,1751005843508,-696.91,0.00019452,2]
[368045113,1751005843518,-2736.05,0.00019452,2]
[368045115,1751005843529,-460.0,0.00019452,2]
[368045117,1751005843539,-460.0,0.00019452,2]
[368045119,1751005843549,-460.0,0.00019452,2]
[368045121,1751005843560,-304.71862366,0.00019452,2]
[368045123,1751005843570,-938.12,0.00019452,2]
[368045125,1751005843580,-460.0,0.00019452,2]
[368045127,1751005843590,-460.0,0.00019452,2]
[368045129,1751005843600,-410.0,0.00019452,2]
[368045132,1751005843610,-2226.32,0.00019452,2]
[368045133,1751005843619,-460.0,0.00019452,2]
[368045135,1751005843629,-460.0,0.00019452,2]
[368045137,1751005843638,-460.0,0.00019452,2]
[368045139,1751005843648,-506.42,0.00019452,2]
[368045141,1751005843658,-460.0,0.00019452,2]
[368045143,1751005843668,-460.0,0.00019452,2]
[368045146,1751005843678,-2605.96,0.00019452,2]
[368045147,1751005843688,-460.0,0.00019452,2]
[368045150,1751005843698,-460.0,0.00019452,2]
[368045152,1751005843708,-444.78139562,0.00019452,2]
[368045153,1751005843718,-460.0,0.00019452,2]
[368045155,1751005843728,-460.0,0.00019452,2]
[368045158,1751005843738,-460.0,0.00019452,2]
[368045160,1751005843749,-210.3,0.00019452,2]
[368045161,1751005843759,-624.6,0.00019452,2]
[368045164,1751005843769,-314.49,0.00019452,2]
[368045166,1751005843778,-500.0,0.00019479,2]
[368045168,1751005843788,-500.0,0.00019479,2]
[368045171,1751005843798,-500.0,0.00019479,2]
[368045173,1751005843810,-500.81995879,0.00019635,2]
[368045175,1751005843820,-500.0,0.00019641,2]
[368045177,1751005843832,-500.0,0.00019641,2]
[368045179,1751005843841,-500.0,0.00019641,2]
[368045181,1751005843850,-500.0,0.00019641,2]
[368045183,1751005843860,-506.63485112,0.00019644,2]
[368045185,1751005843870,-500.0,0.00019644,2]
[368045187,1751005843880,-500.0,0.00019644,2]
[368045189,1751005843889,-500.77727154,0.00019644,2]
[368045191,1751005843900,-501.04519411,0.00019644,2]
[368045193,1751005843909,-500.0,0.00019644,2]
[368045195,1751005843918,-500.0,0.00019644,2]
[368045197,1751005843927,-500.0,0.00019644,2]
[368045199,1751005843937,-1891.13245265,0.00019645,2]
[368045201,1751005843946,-500.0,0.00019645,2]
[368045203,1751005843956,-500.0,0.0001965,2]
[368045205,1751005843965,-500.0,0.0001966,2]
[368045207,1751005843975,-502.55043655,0.0001966,2]
[368045209,1751005843986,-500.0,0.0001966,2]
[368045211,1751005843996,-2460.13,0.00019674,2]
[368045213,1751005844005,-500.0,0.00019674,2]
[368045215,1751005844014,-500.85840275,0.00019675,2]
[368045217,1751005844025,-617.83311831,0.00019675,2]
[368045219,1751005844034,-500.0,0.0001968,2]
[368045221,1751005844044,-500.0,0.0001968,2]
[368045223,1751005844053,-500.0,0.0001968,2]
[368045225,1751005844064,-500.51236361,0.0001968,2]
[368045227,1751005844074,-500.0,0.00019693,2]
[368045229,1751005844084,-160.46873652,0.00019693,2]
[368045231,1751005844093,-500.0,0.00019693,2]
[368045234,1751005844103,-501.00720285,0.000197,2]
[368045236,1751005844112,-2460.13,0.00019724,2]
[368045237,1751005844121,-2460.13,0.00019724,2]
[368045240,1751005844132,-2460.13,0.00019724,2]
[368045242,1751005844141,-2460.13,0.00019724,2]
[368045244,1751005844151,-2460.1423476,0.00019724,2]
[368045246,1751005844160,-460.0,0.00019725,2]
[368045248,1751005844170,-595.33,0.00019725,2]
[368045249,1751005844179,-460.0,0.00019725,2]
[368045252,1751005844189,-417.92041718,0.00019725,2]
[368045253,1751005844198,-460.0,0.00019725,2]
[368045256,1751005844208,-460.0,0.00019725,2]
[368045258,1751005844221,-460.0,0.00019725,2]
[368045260,1751005844231,-460.0,0.00019725,2]
[368045262,1751005844241,-460.0,0.00019725,2]
[368045264,1751005844250,-460.0,0.00019725,2]
[368045266,1751005844260,-779.33,0.00019725,2]
[368045268,1751005844270,-460.0,0.00019725,2]
[368045270,1751005844280,-460.0,0.00019725,2]
[368045272,1751005844290,-938.97,0.00019725,2]
[368045274,1751005844300,-461.85490041,0.00019725,2]
[368045276,1751005844310,-460.0,0.00019725,2]
[368045278,1751005844319,-460.0,0.00019725,2]
[368045280,1751005844329,-460.0,0.00019725,2]
[368045282,1751005844339,-460.0,0.00019725,2]
[368045284,1751005844348,-460.0,0.00019725,2]
[368045286,1751005844358,-460.0,0.00019725,2]
[368045288,1751005844368,-460.0,0.00019725,2]
[368045290,1751005844377,-174.08051206,0.00019725,2]
[368045292,1751005844387,-460.0,0.00019725,2]
[368045294,1751005844397,-460.0,0.00019725,2]
[368045296,1751005844407,-460.0,0.00019725,2]
[368045298,1751005844416,-460.0,0.00019725,2]
[368045300,1751005844427,-460.0,0.00019725,2]
[368045302,1751005844437,-460.0,0.00019725,2]
[368045304,1751005844447,-460.0,0.00019725,2]
[368045306,1751005844456,-460.0,0.00019725,2]
[368045308,1751005844466,-460.0,0.00019725,2]
[368045310,1751005844475,-460.0,0.00019725,2]
[368045312,1751005844486,-460.0,0.00019725,2]
[368045314,1751005844496,-460.0,0.00019725,2]
[368045316,1751005844505,-460.0,0.00019725,2]
[368045318,1751005844515,-460.0,0.00019725,2]
[368045321,1751005844526,-460.0,0.00019726,2]
[368045323,1751005844536,-580.0,0.00019726,2]
[368045325,1751005844546,-467.31011158,0.00019726,2]
[368045327,1751005844555,-579.54023456,0.00019726,2]
[368045329,1751005844566,-460.0,0.00019726,2]
[368045331,1751005844576,-460.0,0.00019726,2]
[368045333,1751005844586,-467.72558827,0.00019726,2]
[368045335,1751005844596,-460.0,0.00019726,2]
[368045337,1751005844605,-321.84768457,0.00019726,2]
[368045339,1751005844615,-460.0,0.00019726,2]
[368045341,1751005844624,-460.0,0.00019726,2]
[368045343,1751005844633,-389.5276768,0.00019726,2]
[368045345,1751005844643,-460.0,0.00019726,2]
[368045347,1751005844653,-460.0,0.00019726,2]
[368045349,1751005844662,-460.0,0.00019726,2]
[368045351,1751005844672,-460.0,0.00019726,2]
[368045353,1751005844682,-430.0,0.00019726,2]
[368045355,1751005844693,-460.0,0.00019726,2]
[368045357,1751005844703,-460.0,0.00019726,2]
[368045359,1751005844713,-460.0,0.00019726,2]
[368045361,1751005844723,-460.0,0.00019726,2]
[368045363,1751005844732,-460.0,0.00019726,2]
[368045365,1751005844742,-460.0,0.00019726,2]
[368045367,1751005844752,-460.0,0.00019726,2]
[368045369,1751005844761,-460.0,0.00019726,2]
[368045371,1751005844771,-460.0,0.00019726,2]
[368045373,1751005844780,-460.0,0.00019726,2]
[368045374,1751005844790,-460.0,0.00019726,2]
[368045375,1751005844799,-460.0,0.00019726,2]
[368045376,1751005844810,-460.0,0.00019726,2]
[368045377,1751005844822,-460.0,0.00019726,2]
[368045378,1751005844834,-460.0,0.00019726,2]
[368045380,1751005844844,-460.0,0.00019726,2]
[368045382,1751005844854,-480.64822948,0.00019726,2]
[368045384,1751005844864,-596.42,0.00019726,2]
[368045386,1751005844873,-205.38,0.00019726,2]
[368045388,1751005844883,-460.0,0.00019726,2]
[368045390,1751005844892,-460.0,0.00019726,2]
[368045392,1751005844902,-460.0,0.00019726,2]
[368045394,1751005844912,-460.0,0.00019726,2]
[368045396,1751005844921,-460.0,0.00019726,2]
[368045398,1751005844931,-472.96471581,0.00019726,2]
[368045400,1751005844940,-460.0,0.00019726,2]
[368045402,1751005844950,-5364.79,0.00019726,2]
[368045404,1751005844961,-460.0,0.00019726,2]
[368045406,1751005844970,-550.18,0.00019726,2]
[368045409,1751005844980,-460.0,0.00019726,2]
[368045411,1751005844990,-771.5,0.00019726,2]
[368045413,1751005844999,-460.0,0.00019726,2]
[368045415,1751005845008,-852.12,0.00019726,2]
[368045417,1751005845020,-460.0,0.00019726,2]
[368045419,1751005845030,-460.0,0.00019726,2]
[368045421,1751005845039,-460.0,0.00019726,2]
[368045423,1751005845049,-618.76,0.00019726,2]
[368045425,1751005845059,-460.0,0.00019726,2]
[368045427,1751005845069,-460.0,0.00019726,2]
[368045429,1751005845080,-2045.09,0.00019726,2]
[368045431,1751005845089,-759.4,0.00019726,2]
[368045433,1751005845098,-460.0,0.00019726,2]
[368045435,1751005845108,-595.27,0.00019726,2]
[368045437,1751005845118,-460.0,0.00019726,2]
[368045439,1751005845127,-460.0,0.00019726,2]
[368045441,1751005845137,-460.0,0.00019726,2]
[368045443,1751005845147,-976.13,0.00019726,2]
[368045445,1751005845156,-460.0,0.00019726,2]
[368045447,1751005845166,-460.0,0.00019726,2]
[368045449,1751005845176,-758.02,0.00019726,2]
[368045451,1751005845185,-1709.26,0.00019726,2]
[368045453,1751005845195,-1619.78,0.00019726,2]
[368045455,1751005845204,-594.5,0.00019726,2]
[368045457,1751005845214,-460.0,0.00019726,2]
[368045459,1751005845224,-460.0,0.00019726,2]
[368045461,1751005845233,-521.21,0.00019726,2]
[368045463,1751005845243,-460.0,0.00019726,2]
[368045465,1751005845253,-442.92991043,0.00019726,2]
[368045467,1751005845263,-460.0,0.00019726,2]
[368045469,1751005845272,-460.0,0.00019726,2]
[368045471,1751005845282,-460.0,0.00019726,2]
[368045473,1751005845291,-460.0,0.00019726,2]
[368045475,1751005845301,-505.12,0.00019726,2]
[368045477,1751005845310,-460.0,0.00019726,2]
[368045479,1751005845320,-2418.76,0.00019726,2]
[368045481,1751005845330,-460.0,0.00019726,2]
[368045483,1751005845339,-460.0,0.00019726,2]
[368045485,1751005845349,-460.0,0.00019726,2]
[368045493,1751005845409,-872.53,0.00019726,2]
[368045495,1751005845419,-2350.34,0.00019726,2]
[368045497,1751005845428,-460.0,0.00019726,2]
[368045499,1751005845437,-460.0,0.00019726,2]
[368045501,1751005845447,-460.0,0.00019726,2]
[368045503,1751005845457,-514.51,0.00019726,2]
[368045504,1751005845466,-460.0,0.00019726,2]
[368045506,1751005845476,-460.0,0.00019726,2]
[368045508,1751005845485,-335.77418389,0.00019726,2]
[368045510,1751005845495,-682.36,0.00019726,2]
[368045512,1751005845504,-460.0,0.00019726,2]
[368045514,1751005845514,-4057.52,0.00019726,2]
[368045516,1751005845523,-467.51926722,0.00019726,2]
[368045518,1751005845533,-602.16,0.00019726,2]
[368045520,1751005845542,-1034.47,0.00019726,2]
[368045522,1751005845552,-2121.43,0.00019726,2]
[368045524,1751005845561,-460.0,0.00019726,2]
[368045526,1751005845572,-460.0,0.00019726,2]
[368045528,1751005845581,-460.0,0.00019726,2]
[368045530,1751005845591,-460.0,0.00019726,2]
[368045532,1751005845601,-259.18330606,0.00019726,2]
[368045534,1751005845611,-460.0,0.00019726,2]
[368045536,1751005845621,-844.02,0.00019726,2]
[368045538,1751005845630,-811.4,0.00019726,2]
[368045540,1751005845640,-460.0,0.00019726,2]
[368045542,1751005845649,-460.0,0.00019726,2]
[368045544,1751005845659,-792.09,0.00019726,2]
[368045546,1751005845669,-470.79891649,0.00019726,2]
[368045548,1751005845679,-460.0,0.00019726,2]
[368045550,1751005845688,-624.88,0.00019726,2]
[368045552,1751005845698,-460.0,0.00019726,2]
[368045554,1751005845707,-460.0,0.00019726,2]
[368045556,1751005845716,-460.0,0.00019726,2]
[368045558,1751005845725,-460.0,0.00019726,2]
[368045560,1751005845735,-460.0,0.00019726,2]
[368045562,1751005845744,-1335.35,0.00019726,2]
[368045564,1751005845753,-460.0,0.00019726,2]
[368045566,1751005845763,-2580.25,0.00019726,2]
[368045568,1751005845771,-460.0,0.00019726,2]
[368045570,1751005845780,-460.0,0.00019726,2]
[368045573,1751005845790,-467.35,0.00019726,2]
[368045575,1751005845799,-460.0,0.00019726,2]
[368045577,1751005845808,-460.0,0.00019726,2]
[368045578,1751005845818,-1352.6,0.00019726,2]
[368045580,1751005845830,-460.0,0.00019726,2]
[368045582,1751005845839,-460.0,0.00019726,2]
[368045584,1751005845848,-755.44,0.00019726,2]
[368045586,1751005845858,-460.0,0.00019726,2]
[368045589,1751005845868,-460.0,0.00019726,2]
[368045591,1751005845878,-471.85286502,0.00019726,2]
[368045592,1751005845888,-460.0,0.00019726,2]
[368045595,1751005845899,-466.03665853,0.00019726,2]
[368045597,1751005845908,-696.91,0.00019726,2]
[368045599,1751005845918,-2736.05,0.00019726,2]
[368045601,1751005845927,-460.0,0.00019726,2]
[368045603,1751005845936,-938.12,0.00019726,2]
[368045605,1751005845945,-460.0,0.00019726,2]
[368045607,1751005845954,-470.35559067,0.00019726,2]
[368045609,1751005845964,-2226.32,0.00019726,2]
[368045611,1751005845973,-460.0,0.00019726,2]
[368045613,1751005845982,-460.0,0.00019726,2]
[368045615,1751005845993,-2605.96,0.00019726,2]
[368045617,1751005846002,-460.0,0.00019726,2]
[368045620,1751005846012,-460.0,0.00019726,2]
[368045622,1751005846021,-460.0,0.00019726,2]
[368045623,1751005846032,-460.0,0.00019726,2]
[368045625,1751005846041,-624.6,0.00019726,2]
[368045627,1751005846050,-500.0,0.00019881,2]
[368045629,1751005846059,-500.0,0.000199,2]
[368045631,1751005846068,-500.0,0.000199,2]
[368045633,1751005846077,-8453.20908742,0.000199,2]
[368045635,1751005846086,-576.59524447,0.00019909,2]
[368045637,1751005846096,-460.0,0.00019999,2]
[368045639,1751005846105,-595.33,0.00019999,2]
[368045641,1751005846114,-382.27558329,0.00019999,2]
[368045643,1751005846124,-460.0,0.00019999,2]
[368045646,1751005846133,-460.0,0.00019999,2]
[368045648,1751005846143,-460.0,0.00019999,2]
[368045650,1751005846152,-440.0,0.00019999,2]
[368045652,1751005846162,-779.33,0.00019999,2]
[368045654,1751005846171,-460.0,0.00019999,2]
[368045656,1751005846180,-460.0,0.00019999,2]
[368045658,1751005846189,-938.97,0.00019999,2]
[368045660,1751005846198,-460.0,0.00019999,2]
[368045662,1751005846207,-460.0,0.00019999,2]
[368045664,1751005846216,-460.0,0.00019999,2]
[368045666,1751005846225,-460.0,0.00019999,2]
[368045668,1751005846235,-460.0,0.00019999,2]
[368045670,1751005846244,-460.0,0.00019999,2]
[368045672,1751005846253,-460.0,0.00019999,2]
[368045674,1751005846261,-460.0,0.00019999,2]
[368045676,1751005846271,-443.76641053,0.00019999,2]
[368045678,1751005846280,-460.0,0.00019999,2]
[368045680,1751005846289,-386.28,0.00019999,2]
[368045682,1751005846298,-460.0,0.00019999,2]
[368045684,1751005846308,-483.05188416,0.00019999,2]
[368045685,1751005846317,-460.0,0.00019999,2]
[368045688,1751005846327,-460.0,0.00019999,2]
[368045690,1751005846336,-503.64734181,0.00019999,2]
[368045692,1751005846346,-253.93845296,0.00019999,2]
[368045693,1751005846355,-460.0,0.00019999,2]
[368045695,1751005846365,-460.0,0.0002,2]
[368045697,1751005846374,-460.0,0.0002,2]
[368045699,1751005846384,-460.0,0.0002,2]
[368045701,1751005846393,-400.0,0.0002,2]
[368045703,1751005846402,-460.0,0.0002,2]
[368045705,1751005846412,-460.0,0.0002,2]
[368045707,1751005846423,-153.02830865,0.0002,2]
[368045709,1751005846432,-460.0,0.0002,2]
[368045712,1751005846442,-403.51486158,0.0002,2]
[368045714,1751005846451,-460.0,0.0002,2]
[368045716,1751005846461,-460.0,0.0002,2]
[368045718,1751005846471,-460.0,0.0002,2]
[368045720,1751005846480,-151.5931537,0.0002,2]
[368045722,1751005846490,-460.0,0.0002,2]
[368045724,1751005846500,-460.0,0.0002,2]
[368045726,1751005846509,-460.0,0.0002,2]
[368045728,1751005846518,-460.0,0.0002,2]
[368045730,1751005846528,-460.0,0.0002,2]
[368045732,1751005846538,-460.0,0.0002,2]
[368045734,1751005846547,-460.0,0.0002,2]
[368045736,1751005846556,-460.0,0.0002,2]
[368045738,1751005846567,-596.42,0.0002,2]
[368045740,1751005846577,-460.0,0.0002,2]
[368045742,1751005846587,-255.0,0.0002,2]
[368045744,1751005846596,-460.0,0.0002,2]
[368045746,1751005846605,-460.0,0.0002,2]
[368045748,1751005846615,-440.47076089,0.0002,2]
[368045750,1751005846624,-5364.79,0.0002,2]
[368045752,1751005846634,-460.0,0.0002,2]
[368045753,1751005846643,-460.0,0.0002,2]
[368045754,1751005846652,-771.5,0.0002,2]
[368045755,1751005846662,-460.0,0.0002,2]
[368045756,1751005846672,-852.12,0.0002,2]